fUST/lending_fUST_20240109
["ID","MTS","AMOUNT","RATE_DAILY","PERIOD"]
[310775641,1704729842363,-964.1138573,0.00017664,2]
[310775642,1704729842397,-154.82968734,0.00017664,2]
[310775643,1704729842436,-1212.41206683,0.00017665,2]
[310775644,1704729842469,-261.65970793,0.00017665,2]
[310775645,1704729842504,-198.84207716,0.00017666,2]
[310775646,1704729861849,-154.82968734,0.00017662,2]
[310775647,1704729861871,-178.44439822,0.00017662,2]
[310775648,1704729861893,-154.82968734,0.00017663,2]
[310775649,1704729861914,-1101.8962271,0.00017666,2]
[310775653,1704729890314,24900.0,0.00017166,2]
[310775654,1704729930608,-1212.41206683,0.00017659,2]
[310775655,1704729930629,-758.46828751,0.00017659,2]
[310775656,1704729930650,-260.82241338,0.0001766,2]
[310775657,1704729930672,-343.85410073,0.0001766,2]
[310775658,1704729930692,-253.44967928,0.0001766,2]
[310775659,1704729930716,-17.04731754,0.00017666,2]
[310775660,1704729930878,-1800.0,0.00018163,2]
[310775661,1704729930903,-22852.94613473,0.00018163,2]
[310775662,1704729946660,757.75701723,0.00016345,2]
[310775663,1704729966266,-525.41351867,0.00017655,2]
[310775664,1704729966288,-4786.33430996,0.00017655,2]
[310775665,1704729966309,-860.46618422,0.00017656,2]
[310775666,1704729966329,-154.82968734,0.00017656,2]
[310775667,1704729966351,-2628.5473384,0.00017656,2]
[310775668,1704729966376,-5311.74782863,0.00017656,2]
[310775669,1704729966397,-154.82968734,0.00017657,2]
[310775670,1704729966417,-190.9274286,0.00017657,2]
[310775671,1704729966438,-154.82968734,0.00017657,2]
[310775672,1704729966461,-2926.57589157,0.00017657,2]
[310775673,1704729966485,-154.82968734,0.00017657,2]
[310775674,1704729966508,-2029.06228573,0.00017658,2]
[310775675,1704729966530,-230.38355805,0.00017658,2]
[310775676,1704729966551,-154.82968734,0.00017659,2]
[310775677,1704729966574,-1583.20716487,0.00017659,2]
[310775678,1704729995499,-12103.27039441,0.00017659,2]
[310775679,1704729995526,-154.82968734,0.00018161,2]
[310775680,1704729995548,-3472.71353536,0.00018161,2]
[310775681,1704729995569,-169.98214791,0.00018161,2]
[310775682,1704729995589,-525.41351867,0.00018161,2]
[310775683,1704729995611,-179.34132114,0.00018161,2]
[310775684,1704729995632,-450.24961948,0.00018161,2]
[310775685,1704729995654,-154.82968734,0.00018161,2]
[310775686,1704729995681,-859.98628581,0.00018161,2]
[310775687,1704729995706,-154.82968734,0.00018161,2]
[310775688,1704729995729,-154.86062548,0.00018161,2]
[310775689,1704729995750,-6611.69348972,0.00018161,2]
[310775690,1704729996381,913.495399,0.00017166,2]
[310775691,1704729997808,1212.41206683,0.00017658,2]
[310775692,1704730063088,-343.85410073,0.00018155,2]
[310775693,1704730063108,-154.82968734,0.00018155,2]
[310775694,1704730063128,-154.82968734,0.00018155,2]
[310775695,1704730063148,-190.9274286,0.00018156,2]
[310775696,1704730063168,-230.38355805,0.00018156,2]
[310775697,1704730063188,-2926.57589157,0.00018157,2]
[310775698,1704730063209,-1200.0,0.00018158,2]
[310775699,1704730063229,-1988.77445231,0.00018159,2]
[310775700,1704730063250,-31395.82519406,0.00018159,2]
[310775703,1704730147110,-164.84804974,0.00018152,2]
[310775704,1704730147131,-2069.48614315,0.00018152,2]
[310775705,1704730147154,-154.82968734,0.00018153,2]
[310775706,1704730147174,-1988.77445231,0.00018153,2]
[310775707,1704730147194,-19652.00978735,0.00018153,2]
[310775708,1704730147215,-297.00878539,0.00018154,2]
[310775713,1704730166112,-1290.44709012,0.00018152,2]
[310775714,1704730166134,-8787.23338147,0.00018152,2]
[310775721,1704730225078,9998.444964,0.0002,15]
[310775749,1704730233203,-1000.0,0.00018149,2]
[310775750,1704730233213,-1000.0,0.00018149,2]
[310775752,1704730233223,-42955.68251716,0.00018149,2]
[310775754,1704730233238,-35372.24797972,0.00018149,2]
[310775756,1704730233247,-13686.47755928,0.0001815,2]
[310775757,1704730233256,-9042.13484928,0.00018152,2]
[310775759,1704730233266,-2066.86383348,0.00018152,2]
[310775760,1704730233275,-520.37277902,0.00018152,2]
[310775762,1704730233285,-164.71589594,0.00018152,2]
[310775763,1704730233294,-240.70028677,0.00018152,2]
[310775765,1704730233303,-209.35786317,0.00018157,2]
[310775767,1704730233312,-158.63402973,0.00018157,2]
[310775768,1704730233322,-154.84515485,0.00018157,2]
[310775770,1704730233331,-1092.79793048,0.00018161,2]
[310775771,1704730233341,-2913.79171529,0.00018162,2]
[310775773,1704730233350,-245.72874804,0.00018164,2]
[310775774,1704730233360,-228.37659232,0.00018164,2]
[310775776,1704730233369,-154.89156354,0.00018164,2]
[310775778,1704730233379,-591.96514265,0.00018164,2]
[310775779,1704730233388,-216.270982,0.00018164,2]
[310775781,1704730233398,-318.3522843,0.00018164,2]
[310775782,1704730233407,-261.61795864,0.00018165,2]
[310775784,1704730233416,-154.84527847,0.00018165,2]
[310775786,1704730233425,-178.44439822,0.00018165,2]
[310775787,1704730233434,-309.65937468,0.00018165,2]
[310775789,1704730233444,-154.84515485,0.00018166,2]
[310775790,1704730233453,-23801.02066394,0.00018167,2]
[310775792,1704730233463,-250.0,0.0001817,2]
[310775794,1704730233473,-190.38701546,0.00019162,2]
[310775795,1704730233482,-177.157011,0.00019178,2]
[310775797,1704730233492,-166.247454,0.00019178,2]
[310775798,1704730233502,-2992.99968739,0.0002,2]
[310775800,1704730233511,-1194.60979452,0.0002,2]
[310775801,1704730233521,-166.247454,0.00020521,2]
[310775803,1704730233531,-5572.1886899,0.00021,2]
[310775804,1704730233541,-2008.68409118,0.00023,2]
[310775805,1704730233552,-492.27503282,0.00023288,2]
[310775807,1704730233562,-514.85177329,0.00023288,2]
[310775809,1704730233572,-2292.16683006,0.00024,2]
[310775810,1704730233581,-913.495399,0.00025749,2]
[310775812,1704730233591,-1079.33158017,0.00025919,2]
[310775813,1704730233602,-343.01320282,0.00025929,2]
[310775815,1704730233611,-154.90703105,0.00025929,2]
[310775817,1704730233620,-327.79859707,0.0002593,2]
[310775818,1704730233629,-5785.50985547,0.0002593,2]
[310775820,1704730233639,-976.288089,0.0002593,2]
[310775822,1704730233648,-253.12910593,0.00026701,2]
[310775823,1704730233657,-260.77822121,0.00026701,2]
[310775825,1704730233666,-596.70925776,0.00026703,2]
[310775827,1704730233675,-7764.51,0.00027397,3]
[310775828,1704730233685,-4763.24927861,0.000275,2]
[310775830,1704730233694,-181.827664,0.0002784,2]
[310775832,1704730233703,-3714.9027005,0.00028022,2]
[310775833,1704730233715,-6470.42,0.00028801,3]
[310775835,1704730233724,-4339.59849332,0.0002881,2]
[310775836,1704730233732,-160.03928654,0.0002881,4]
[310775841,1704730233788,133.53837795,0.00017575,2]
[310775843,1704730233809,73.93052735,0.00017575,2]
[310775907,1704730238912,-1000.0,0.00018149,2]
[310775909,1704730238922,-33.32617626,0.0002881,4]
[310775911,1704730238931,-286.30777474,0.0002881,4]
[310775912,1704730238940,-908.28636801,0.00028811,2]
[310775913,1704730238950,-3439.78920247,0.00028811,2]
[310775917,1704730239000,-1002.58271995,0.00028811,2]
[310775918,1704730239012,-884.3368158,0.00028811,2]
[310775996,1704730243994,-2974.13477077,0.00028811,2]
[310775997,1704730244005,-91.86522923,0.00028811,2]
[310775998,1704730244053,-725.56,0.00028811,2]
[310776002,1704730244621,-5392.02,0.00028801,3]
[310776004,1704730244630,-1194.60979452,0.0002881,2]
[310776006,1704730244640,-8391.70464777,0.00028811,2]
[310776008,1704730244649,-9209.129877,0.00028811,2]
[310776010,1704730244657,-8859.32928071,0.00028811,2]
[310776069,1704730249381,-1.0791308,0.0002881,2]
[310776077,1704730249455,-582.39674736,0.0002881,2]
[310776197,1704730316077,3508.06185484,0.00017165,2]
[310776198,1704730316098,5311.74782863,0.00017165,2]
[310776199,1704730316133,16080.19031653,0.00017165,2]
[310776200,1704730346694,182.46762321,0.00017165,2]
[310776201,1704730350565,200.66229763,0.00017165,2]
[310776202,1704730359887,333.06538241,0.00017165,2]
[310776203,1704730360717,183.09195703,0.00017165,2]
[310776204,1704730366006,178.83619526,0.00017165,2]
[310776205,1704730385831,1351.31196449,0.00017165,5]
[310776206,1704730401804,1353.308465,0.00017165,5]
[310776288,1704731438351,-1464.12003947,0.00021605,2]
[310776289,1704731438363,-7552.78653652,0.00022326,2]
[310776290,1704731438375,-1194.60979452,0.00022326,2]
[310776291,1704731438386,-6249.92,0.00022327,3]
[310776292,1704731438397,-5208.27,0.00022327,3]
[310776293,1704731438409,-521.0,0.00022337,2]
[310776294,1704731438419,-2701.59694588,0.00022337,5]
[310776295,1704731438430,-521.0,0.00022337,2]
[310776296,1704731438440,-80568.5436283,0.00022337,2]
[310776297,1704731438452,-521.0,0.00022337,2]
[310776298,1704731438463,-521.0,0.00022337,2]
[310776299,1704731438475,-521.0,0.00022337,2]
[310776300,1704731438485,-1678.74703776,0.00022338,2]
[310776301,1704731438498,-1140.06440702,0.00022338,2]
[310791024,1704731818056,1713.23313057,0.0002106,5]
[310791026,1704732062076,2701.59694588,0.00019561,5]
[310791027,1704732122481,-180.0,0.00018954,2]
[310791028,1704732190311,-4324.76711743,0.0001895,2]
[310791029,1704732190334,-1988.77445231,0.00018951,2]
[310791030,1704732190354,-521.0,0.00018952,2]
[310791031,1704732190374,-102.29212395,0.00018954,2]
[310791032,1704732190395,-747.16630631,0.00019036,2]
[310791098,1704732547113,-223.8872037,0.00018383,2]
[310791099,1704732547133,-4324.76711743,0.00018847,2]
[310791100,1704732547152,-35.31053112,0.00018848,2]
[310791103,1704732556091,-2024.7013518,0.00018847,2]
[310791104,1704732558103,-34786.34782685,0.00018847,2]
[310791105,1704732558125,-1966.33177633,0.00018848,2]
[310791106,1704732558334,-157.15420997,0.00018854,2]
[310791107,1704732558355,-2926.57589157,0.00018953,2]
[310791108,1704732558377,-2609.18804183,0.00018954,2]
[310791109,1704732558401,-2505.16401237,0.00019035,2]
[310791187,1704732632278,-4324.76711743,0.00018033,2]
[310791188,1704732632288,-2926.57589157,0.00018033,2]
[310791189,1704732632298,-1988.77445231,0.00018034,2]
[310791190,1704732632307,-913.26522706,0.00018035,2]
[310791191,1704732632319,-587.29900414,0.00018035,2]
[310791192,1704732632328,-521.0,0.00018952,2]
[310791194,1704732632338,-9.91044005,0.00019032,2]
[310791196,1704732632349,-82474.142303,0.00019032,2]
[310791198,1704732632359,-13119.84334918,0.00019033,2]
[310791471,1704732639066,-2566.71909432,0.00019033,2]
[310792153,1704732646196,-1147.51610004,0.00019033,2]
[310792160,1704732646267,-812.93124147,0.00019033,2]
[310796305,1704732690353,285.5,0.00029998,120]
[310799826,1704733219111,-154.82968734,0.00017644,2]
[310799827,1704733219139,-1212.41206683,0.00017645,2]
[310799828,1704733219165,-586.81733784,0.00017645,2]
[310799829,1704733219193,-271.84681724,0.00017646,2]
[310799830,1704733219220,-154.82968734,0.00017647,2]
[310799831,1704733219249,-1736.56137293,0.00017648,2]
[310799832,1704733219276,-882.70303048,0.00017649,2]
[310799834,1704733500822,-2926.57589157,0.00017648,2]
[310799835,1704733500849,-1106.07142183,0.00017649,2]
[310799836,1704733500876,-250.0,0.00017656,2]
[310799837,1704733500905,-717.3526866,0.00017656,2]
[310799838,1704733532197,900.0,0.00028,60]
[310799839,1704733576372,973.52981026,0.00016,5]
[310799843,1704733601507,500.0,0.00029,100]
[310799844,1704733625091,-34786.34782685,0.00017655,2]
[310799847,1704733723137,154.82,0.00029,30]
[310799859,1704733755104,-758.46828751,0.00017652,2]
[310799860,1704733755124,-154.82968734,0.00017653,2]
[310799861,1704733755144,-251.86096896,0.00017653,2]
[310799923,1704733839372,-101.13903104,0.00017653,2]
[310799924,1704733839382,-167.600317,0.00017656,2]
[310799925,1704733839392,-553.6603518,0.000189,2]
[310799926,1704733839401,-172.23474005,0.00019036,2]
[310799955,1704733843621,-895.55712687,0.00019036,2]
[310799956,1704733843631,-1381.1004689,0.00019076,2]
[310799978,1704733848867,-23518.8995311,0.00019076,2]
[310799979,1704733848880,-218.944606,0.00019178,2]
[310799980,1704733848893,-181.162505,0.00019178,2]
[310799981,1704733848906,-231.5218934,0.00019178,2]
[310799982,1704733848918,-192.472332,0.00019375,2]
[310799983,1704733848928,-502.9023403,0.0001947,2]
[310799984,1704733848939,-180.21192682,0.00019561,2]
[310799985,1704733848951,-1332.9932487,0.00019679,2]
[310799988,1704733848963,-1194.60979452,0.00020999,2]
[310799990,1704733848976,-2926.57589157,0.00020999,2]
[310799993,1704733848988,-232.43902512,0.00021,2]
[310799996,1704733849014,-7570.49397843,0.00021,2]
[310799998,1704733849029,-155.52082854,0.00021047,2]
[310800001,1704733849044,-977.1684377,0.00021048,5]
[310800003,1704733849057,-166.666666,0.00021918,2]
[310800005,1704733849069,-876.32258,0.00022,4]
[310800007,1704733849080,-10230.411709,0.00022371,2]
[310800021,1704733866269,1351.31196449,0.00017653,5]
[310800022,1704734112565,-205.35493688,0.00017653,2]
[310800023,1704734112592,-560.08684072,0.00017653,2]
[310800024,1704734112619,-262.79082133,0.00017653,2]
[310800025,1704734112649,-314.87100415,0.00017653,2]
[310800026,1704734700286,-758.46828751,0.00017631,2]
[310800027,1704734700314,-154.82968734,0.00017632,2]
[310800028,1704734700343,-901.30981836,0.00017633,2]
[310800029,1704734700373,-3185.39220679,0.00017643,2]
[310800030,1704734860036,180.0,0.00015879,2]
[310800031,1704734927206,150.0,0.00029,30]
[310800032,1704734929268,5210.03643091,0.00015879,2]
[310800037,1704734947264,3271.23837995,0.00015879,2]
[310800038,1704734952109,-1988.77445231,0.00017641,2]
[310800039,1704734952129,-765.45409985,0.00017642,2]
[310800040,1704734952149,-2604.90954828,0.00017643,2]
[310800041,1704734959387,-7320.0930558,0.00017643,2]
[310800075,1704735032638,-186.44744215,0.00017643,2]
[310800076,1704735032648,-27.41027761,0.00017653,2]
[310800077,1704735032657,-747.1663063,0.00019017,2]
[310800078,1704735032669,-4324.76711743,0.00019761,2]
[310800079,1704735032680,-6815.72021514,0.00019762,2]
[310800080,1704735032693,-37045.52254965,0.00019762,2]
[310800082,1704735032704,-24900.0,0.00019763,2]
[310800084,1704735032714,-853.21097928,0.0002027,2]
[310800087,1704735032725,-369.1069012,0.00020271,2]
[310800089,1704735032735,-901.30981836,0.00021917,2]
[310800091,1704735032745,-166.666666,0.00021918,2]
[310800093,1704735032754,-292.72795605,0.00022,4]
[310800095,1704735032764,-9414.6443448,0.00022371,2]
[310800097,1704735032773,-200.0,0.00022371,2]
[310800099,1704735032783,-237.37270531,0.00022371,5]
[310800101,1704735032793,-181.827664,0.00023436,2]
[310800103,1704735032802,-2292.16683006,0.00024999,2]
[310800105,1704735032812,-585.78368002,0.00025,2]
[310800107,1704735032822,-369.1069012,0.00025271,2]
[310800109,1704735032833,-226.90835638,0.00025825,5]
[310800111,1704735032843,-952.7748806,0.00025825,2]
[310800170,1704735039047,-154.82968734,0.00025824,2]
[310800172,1704735039056,-3924.94175628,0.00025825,2]
[310800174,1704735039067,-905.15,0.00025825,2]
[310800267,1704735041760,-2.64321859,0.00025825,2]
[310800268,1704735041770,-976.288089,0.00025825,2]
[310800269,1704735041779,-1322.43431153,0.000259,2]
[310800270,1704735041788,-428.1570143,0.00027753,2]
[310800271,1704735041798,-353.84448222,0.00028022,2]
[310800272,1704735041807,-1433.13288436,0.00028022,2]
[310800324,1704735044182,-1599.67849634,0.00028022,2]
[310800327,1704735044192,-487.66751231,0.00028022,2]
[310800330,1704735044201,-2036.5212099,0.0002812,2]
[310800333,1704735044210,-153.0,0.00028356,2]
[310800336,1704735044219,-153.0,0.00028356,2]
[310800339,1704735044228,-153.0,0.00028356,2]
[310800342,1704735044237,-2128.92479733,0.00028521,2]
[310800344,1704735044247,-187.67060335,0.00028584,2]
[310800346,1704735044256,-433.98160686,0.00028603,2]
[310800349,1704735044265,-500.0,0.00028685,2]
[310800352,1704735044274,-610.13546476,0.00028685,2]
[310800354,1704735044282,-458.87825604,0.00028685,2]
[310800356,1704735044291,-240.82848987,0.00028685,2]
[310800358,1704735044300,-190.57151631,0.00028685,2]
[310800360,1704735044309,-4764.3594646,0.00028686,3]
[310800546,1704735046683,-2455.12340701,0.00028686,3]
[310800571,1704735156966,159.68636184,0.00028,30]
[310800684,1704736238149,-1165.15894381,0.00024317,2]
[310800686,1704736238161,-540.06899605,0.00024317,2]
[310800916,1704736242884,-586.9388902,0.00024317,2]
[310800918,1704736242894,-13420.49158388,0.00024318,2]
[310803883,1704737432025,-154.84515485,0.00017917,2]
[310803885,1704737432035,-521.63707582,0.00017917,2]
[310803886,1704737432044,-260.82241338,0.00017917,2]
[310803888,1704737432054,-872.16543446,0.00017917,2]
[310803889,1704737432063,-115.89647708,0.00017918,2]
[310803890,1704737432091,-38.94867777,0.00017918,2]
[310803891,1704737432100,-860.46618422,0.00017919,2]
[310803892,1704737432109,-18.20031675,0.00017919,2]
[310803893,1704737432120,-19633.8094706,0.00017919,2]
[310803894,1704737432129,-2634.26674675,0.0001792,2]
[310803895,1704737432138,-154.84515485,0.0001792,2]
[310803896,1704737432148,-1988.77445231,0.0001792,2]
[310803897,1704737432157,-253.44967928,0.0001792,2]
[310803898,1704737432167,-901.30981836,0.0001792,2]
[310803899,1704737432176,-7940.29516703,0.00017921,2]
[310803900,1704737432186,-20823.66437737,0.00017922,2]
[310803901,1704737432195,-154.84515485,0.00017929,2]
[310803902,1704737432204,-4454.98852596,0.00017947,2]
[310804250,1704737438281,-2469.00183464,0.00017947,2]
[310804251,1704737438293,-17976.0096394,0.00017947,2]
[310804252,1704737438303,-178.94356898,0.00018861,2]
[310804253,1704737438312,-456.747699,0.00018961,2]
[310804254,1704737438322,-3828.6633715,0.00018968,2]
[310804255,1704737438332,-189.801686,0.00019178,2]
[310804256,1704737438342,-964.1138573,0.00019962,2]
[310804257,1704737438351,-7407.443931,0.0001999,2]
[310804258,1704737438361,-7407.443931,0.0001999,2]
[310804259,1704737438370,-8782.48,0.0001999,3]
[310804260,1704737438379,-15717.63428871,0.00019999,2]
[310804261,1704737438391,-156.03695459,0.00019999,2]
[310804262,1704737438400,-7407.443931,0.0002,2]
[310804263,1704737438410,-7407.443931,0.0002,2]
[310804264,1704737438419,-243.02113403,0.0002,2]
[310804265,1704737438429,-1194.60979452,0.0002,2]
[310804267,1704737438439,-2992.99968739,0.0002,2]
[310804268,1704737438449,-189.801686,0.00020521,2]
[310804270,1704737438459,-2069.1542188,0.00020996,2]
[310804272,1704737438470,-469.44638511,0.00020996,2]
[310804274,1704737438481,-7407.443931,0.00020998,2]
[310804276,1704737438491,-7407.443931,0.00020998,2]
[310804278,1704737438500,-2707.3394266,0.00020999,2]
[310804279,1704737438510,-7445.67497033,0.00021,2]
[310804281,1704737438522,-160.00060282,0.00022,2]
[310804283,1704737438532,-198.74018768,0.00022212,2]
[310804285,1704737438541,-405.236113,0.00022212,2]
[310804287,1704737438550,-405.236113,0.00022212,2]
[310804289,1704737438559,-151.0,0.00022212,2]
[310804291,1704737438569,-405.236113,0.00022214,2]
[310804293,1704737438579,-405.236113,0.00022214,2]
[310804295,1704737438598,-151.0,0.00022214,2]
[310804297,1704737438608,-1300.10473669,0.00022214,2]
[310804299,1704737438621,-2887.02263536,0.00022214,2]
[310804301,1704737438633,-1782.96694049,0.00022214,2]
[310804303,1704737438644,-1437.34961846,0.00022214,2]
[310804305,1704737438653,-452.82089475,0.00022214,2]
[310804317,1704737438871,-6954.62303625,0.00022214,2]
[310804319,1704737438880,-7407.443931,0.00022214,2]
[310804321,1704737438890,-7407.443931,0.00022214,2]
[310804323,1704737438899,-15341.05666022,0.00022214,2]
[310804325,1704737438908,-2047.56102621,0.00022216,2]
[310804327,1704737438918,-321.93871965,0.00022218,2]
[310804328,1704737438927,-405.236113,0.00023,2]
[310804330,1704737438936,-405.236113,0.00023,2]
[310804333,1704737438946,-219.0,0.00023,2]
[310804335,1704737438956,-2092.18468192,0.00023,2]
[310804337,1704737438966,-9915.11323569,0.00023,2]
[310804339,1704737438976,-7407.443931,0.00023,2]
[310804341,1704737438985,-7407.443931,0.00023,2]
[310804343,1704737438994,-154.84515485,0.00023286,2]
[310804345,1704737439003,-7407.443931,0.00023287,2]
[310804347,1704737439014,-7407.443931,0.00023287,2]
[310804349,1704737439023,-500.0,0.00023288,2]
[310804351,1704737439033,-272.19411667,0.00023288,2]
[310804352,1704737439041,-591.42327456,0.00023288,2]
[310804355,1704737439051,-196.66210973,0.00023288,2]
[310804356,1704737439061,-160.03928654,0.00023288,4]
[310804359,1704737439071,-1577.96610455,0.00024316,2]
[310804360,1704737439081,-405.236113,0.00024317,2]
[310804362,1704737439090,-405.236113,0.00024317,2]
[310804364,1704737439099,-7407.443931,0.00024317,2]
[310804367,1704737439109,-7407.443931,0.00024317,2]
[310804368,1704737439118,-1351.31196449,0.00024318,5]
[310804370,1704737439127,-200.0,0.00024318,2]
[310804373,1704737439137,-660.15007955,0.00024318,2]
[310804375,1704737439146,-7407.443931,0.00025311,2]
[310804376,1704737439155,-7407.443931,0.00025311,2]
[310804379,1704737439165,-2292.16683006,0.00025311,2]
[310804381,1704737439174,-1450.03755838,0.00025323,2]
[310804383,1704737439184,-151.0,0.00025813,2]
[310804384,1704737439195,-525.66386254,0.00026,2]
[310804386,1704737439204,-181.162505,0.00026243,2]
[310804389,1704737439214,-321.93871965,0.00027218,2]
[310804390,1704737439223,-405.236113,0.00027499,2]
[310804392,1704737439233,-405.236113,0.00027499,2]
[310804395,1704737439243,-7407.443931,0.00027499,2]
[310804396,1704737439252,-7407.443933,0.00027499,2]
[310804398,1704737439261,-4763.24927861,0.000275,2]
[310804400,1704737439272,-153.0,0.00027753,2]
[310804402,1704737439281,-153.0,0.00027753,2]
[310804404,1704737439291,-153.0,0.00027753,2]
[310804406,1704737439300,-1322.43431153,0.00028,2]
[310804408,1704737439309,-405.236113,0.00028,2]
[310804410,1704737439318,-405.236113,0.00028,2]
[310804412,1704737439328,-1319.41143694,0.00028022,2]
[310804414,1704737439337,-187.88744993,0.00028022,2]
[310804416,1704737439346,-456.747699,0.00028441,2]
[310804418,1704737439355,-153.0,0.00028575,2]
[310804420,1704737439364,-153.0,0.00028575,2]
[310804422,1704737439374,-153.0,0.00028575,2]
[310804424,1704737439383,-178.94356898,0.00028609,2]
[310804427,1704737439392,-304.86467547,0.00028686,2]
[310804429,1704737439401,-3210.68697363,0.00028686,2]
[310804432,1704737439410,-301.38555231,0.00028694,2]
[310804435,1704737439419,-973.39849881,0.00028694,2]
[310804438,1704737439428,-154.98439019,0.00028694,2]
[310804441,1704737439438,-343.01320283,0.00028694,2]
[310804444,1704737439447,-405.236113,0.00028694,2]
[310804447,1704737439457,-405.236113,0.00028694,2]
[310804450,1704737439466,-155.31365558,0.00028709,2]
[310804453,1704737439475,-154.90705577,0.00028709,2]
[310804456,1704737439484,-237.67865572,0.00028709,2]
[310804459,1704737439493,-7268.29373,0.00028709,2]
[310804462,1704737439504,-360.74116376,0.00028709,2]
[310804465,1704737439515,-3635.81957981,0.00028709,2]
[310804468,1704737439526,-676.3587277,0.00028709,2]
[310804471,1704737439535,-236.00464652,0.00028709,2]
[310804473,1704737439544,-225.5395234,0.00028709,2]
[310804475,1704737439553,-405.236113,0.00028709,2]
[310804476,1704737439563,-405.236113,0.00028709,2]
[310804478,1704737439572,-405.236113,0.00028709,2]
[310804480,1704737439583,-405.236113,0.00028709,2]
[310804482,1704737439596,-405.236113,0.00028709,2]
[310804484,1704737439606,-405.23611842,0.00028709,2]
[310804487,1704737439615,-230.29533204,0.0002871,2]
[310804489,1704737439625,-206893.01978878,0.00028711,2]
[310804491,1704737439634,-270.84913856,0.00028784,2]
[310804493,1704737439643,-182.67449448,0.00028785,2]
[310804495,1704737439653,-1736.22791951,0.00028785,2]
[310804497,1704737439663,-415.25093763,0.00028785,2]
[310804500,1704737439674,-154.1719643,0.00028792,2]
[310804501,1704737439683,-1290.44709012,0.00028793,2]
[310804503,1704737439693,-245.94314602,0.00028793,2]
[310804506,1704737439706,-197.15151199,0.00028794,2]
[310804508,1704737439715,-438.79494176,0.00028794,2]
[310804510,1704737439730,-243.6662938,0.00028794,2]
[310804512,1704737439743,-3082.80366341,0.00028794,2]
[310804514,1704737439756,-285.61680411,0.00028794,2]
[310804515,1704737439778,-245.72874804,0.00028794,2]
[310804518,1704737439788,-156.60603131,0.00028797,2]
[310804519,1704737439799,-20845.41719757,0.00028797,2]
[310804522,1704737439810,-155.09293406,0.00028808,2]
[310804524,1704737439821,-174.73357117,0.00028808,2]
[310804526,1704737439831,-154.96265905,0.00028808,2]
[310804528,1704737439841,-154.87604972,0.00028808,2]
[310804530,1704737439851,-185.54327278,0.00028808,2]
[310804532,1704737439861,-154.86062544,0.00028809,2]
[310804533,1704737439870,-298.073383,0.00028809,2]
[310804535,1704737439880,-1211.43765368,0.0002881,2]
[310804537,1704737439889,-309.56660676,0.00028811,2]
[310804539,1704737439898,-155.83548955,0.00028811,2]
[310804541,1704737439909,-2871.21525435,0.00028811,2]
[310804543,1704737439918,-1656.63523824,0.00028811,2]
[310804545,1704737439928,-154.81422293,0.00028811,2]
[310804548,1704737439938,-399.84612211,0.00028811,2]
[310804549,1704737439947,-1172.14414578,0.00028811,2]
[310804552,1704737439957,-1235.04940633,0.00028811,2]
[310804554,1704737439967,-154.84515485,0.00028811,2]
[310804556,1704737439976,-165.70894112,0.00028811,2]
[310804557,1704737439985,-155.93147082,0.00028811,2]
[310804559,1704737439995,-2807.31630166,0.00028811,2]
[310804561,1704737440004,-176.44509333,0.00028811,2]
[310804564,1704737440017,-3805.83646724,0.00028811,2]
[310804565,1704737440027,-539.34443772,0.00028811,2]
[310804567,1704737440036,-308.55477448,0.00028811,2]
[310804569,1704737440046,-3402.08028876,0.00028811,2]
[310804571,1704737440055,-1574.6122842,0.00028811,2]
[310804573,1704737440065,-1000.0,0.00029,29]
[310804575,1704737440075,-5400.0,0.00029,2]
[310804578,1704737440085,-2000.0,0.00029,2]
[310804580,1704737440095,-457.0,0.00029,2]
[310804582,1704737440104,-2000.0,0.0002901,2]
[310804584,1704737440114,-2000.0,0.0002902,2]
[310804586,1704737440123,-2000.0,0.0002903,2]
[310804588,1704737440134,-2000.0,0.0002904,2]
[310804590,1704737440144,-2000.0,0.0002905,2]
[310804593,1704737440154,-2000.0,0.0002906,2]
[310804594,1704737440164,-2000.0,0.0002907,2]
[310804596,1704737440173,-2000.0,0.0002908,2]
[310804599,1704737440182,-2283.563463,0.0002909,2]
[310804602,1704737440192,-181.3973617,0.00029178,2]
[310804605,1704737440201,-249.8503089,0.00029726,2]
[310804607,1704737440210,-150.0,0.00029792,2]
[310804609,1704737440220,-152.92410639,0.0002981,2]
[310804611,1704737440229,-2630.77252189,0.00029849,30]